[Event "Titled Tuesday Blitz February 15 Early 2022"]
[White "Agasarov, Benik"]
[Black "Hamley, Ryan"]
[WhiteFideId "13314823"]
[BlackFideId "30959497"]
[WhiteElo "2594"]
[BlackElo "2393"]
[Result "1-0"]
[Round "06"]
[TimeControl "180+1"]
[Date "2022.02.15"]
[WhiteClock "0:00:21"]
[BlackClock "0:00:03"]

1. d4 {[%clk 0:03:00]}  Nf6 {[%clk 0:02:55]} 2. Nf3 {[%clk 0:03:00]}  e6 {[%clk 0:02:54]} 3. c4 {[%clk 0:02:59]}  d5 {[%clk 0:02:55]} 4. Nc3 {[%clk 0:02:55]}  c6 {[%clk 0:02:52]} 5. Bg5 {[%clk 0:02:49]}  Nbd7 {[%clk 0:02:52]} 6. e3 {[%clk 0:02:49]}  Qa5 {[%clk 0:02:52]} 7. Nd2 {[%clk 0:02:48]}  Bb4 {[%clk 0:02:51]} 8. Qc2 {[%clk 0:02:44]}  dxc4 {[%clk 0:02:45]} 9. Bxf6 {[%clk 0:02:44]}  Nxf6 {[%clk 0:02:45]} 10. Nxc4 {[%clk 0:02:44]}  Qc7 {[%clk 0:02:45]} 11. a3 {[%clk 0:02:43]}  Be7 {[%clk 0:02:42]} 12. Be2 {[%clk 0:02:42]}  O-O {[%clk 0:02:40]} 13. O-O {[%clk 0:02:42]}  Bd7 {[%clk 0:02:33]} 14. Bf3 {[%clk 0:02:40]}  c5 {[%clk 0:02:30]} 15. dxc5 {[%clk 0:02:20]}  Qxc5 {[%clk 0:02:24]} 16. Nd2 {[%clk 0:02:13]}  Bc6 {[%clk 0:02:20]} 17. b4 {[%clk 0:02:08]}  Qb6 {[%clk 0:02:02]} 18. Na4 {[%clk 0:02:04]}  Bxa4 {[%clk 0:01:29]} 19. Qxa4 {[%clk 0:02:03]}  Rac8 {[%clk 0:01:29]} 20. Nb3 {[%clk 0:01:58]}  h6 {[%clk 0:01:26]} 21. Na5 {[%clk 0:01:55]}  Nd5 {[%clk 0:01:20]} 22. Bxd5 {[%clk 0:01:53]}  exd5 {[%clk 0:01:19]} 23. Rfd1 {[%clk 0:01:53]}  Bf6 {[%clk 0:01:17]} 24. Rab1 {[%clk 0:01:50]}  d4 {[%clk 0:01:15]} 25. e4 {[%clk 0:01:37]}  Rfe8 {[%clk 0:01:09]} 26. Nc4 {[%clk 0:01:33]}  Qe6 {[%clk 0:01:04]} 27. Nd2 {[%clk 0:01:30]}  Bg5 {[%clk 0:00:58]} 28. Nf3 {[%clk 0:01:22]}  Qxe4 {[%clk 0:00:57]} 29. Re1 {[%clk 0:01:17]}  Qc6 {[%clk 0:00:32]} 30. Qxc6 {[%clk 0:01:07]}  Rxe1+ {[%clk 0:00:31]} 31. Rxe1 {[%clk 0:01:06]}  Rxc6 {[%clk 0:00:31]} 32. Nxd4 {[%clk 0:01:06]}  Rc3 {[%clk 0:00:28]} 33. Nb5 {[%clk 0:01:04]}  Rb3 {[%clk 0:00:26]} 34. Nxa7 {[%clk 0:01:02]}  Rxa3 {[%clk 0:00:25]} 35. Nc8 {[%clk 0:01:00]}  Rb3 {[%clk 0:00:24]} 36. h4 {[%clk 0:00:56]}  Bxh4 {[%clk 0:00:20]} 37. g3 {[%clk 0:00:51]}  Bf6 {[%clk 0:00:19]} 38. Re4 {[%clk 0:00:50]}  Bc3 {[%clk 0:00:15]} 39. Ne7+ {[%clk 0:00:47]}  Kh7 {[%clk 0:00:15]} 40. Nd5 {[%clk 0:00:47]}  Ba1 {[%clk 0:00:12]} 41. Re7 {[%clk 0:00:47]}  Rd3 {[%clk 0:00:05]} 42. Nf4 {[%clk 0:00:45]}  Rd1+ {[%clk 0:00:04]} 43. Kg2 {[%clk 0:00:46]}  Rb1 {[%clk 0:00:02]} 44. Rxb7 {[%clk 0:00:45]}  Bd4 {[%clk 0:00:03]} 45. b5 {[%clk 0:00:43]}  Rb2 {[%clk 0:00:03]} 46. Rxf7 {[%clk 0:00:41]}  Rxf2+ {[%clk 0:00:03]} 47. Kh3 {[%clk 0:00:40]}  Kg8 {[%clk 0:00:03]} 48. Rd7 {[%clk 0:00:39]}  Be3 {[%clk 0:00:03]} 49. Ne6 {[%clk 0:00:37]}  Rf7 {[%clk 0:00:02]} 50. Rd8+ {[%clk 0:00:36]}  Kh7 {[%clk 0:00:02]} 51. Nf8+ {[%clk 0:00:37]}  Kg8 {[%clk 0:00:02]} 52. Nd7+ {[%clk 0:00:34]}  Kh7 {[%clk 0:00:03]} 53. b6 {[%clk 0:00:33]}  Bxb6 {[%clk 0:00:01]} 54. Nxb6 {[%clk 0:00:32]}  g5 {[%clk 0:00:02]} 55. Nd7 {[%clk 0:00:32]}  h5 {[%clk 0:00:02]} 56. Ne5 {[%clk 0:00:30]}  Rf5 {[%clk 0:00:02]} 57. Rd7+ {[%clk 0:00:30]}  Kg8 {[%clk 0:00:02]} 58. Ng6 {[%clk 0:00:30]}  Rc5 {[%clk 0:00:01]} 59. Ne7+ {[%clk 0:00:22]}  Kg7 {[%clk 0:00:01]} 60. Nd5+ {[%clk 0:00:21]}  Kg6 {[%clk 0:00:01]} 61. Rd6+ {[%clk 0:00:21]}  Kf7 {[%clk 0:00:01]} 62. Rf6+ {[%clk 0:00:21]}  Kg7 {[%clk 0:00:02]} 63. Rf5 {[%clk 0:00:21]}  h4 {[%clk 0:00:01]} 64. Rxg5+ {[%clk 0:00:21]}  Kh6 {[%clk 0:00:02]} 65. gxh4 {[%clk 0:00:21]}  Rc4 {[%clk 0:00:02]} 66. Ne3 {[%clk 0:00:20]}  Rc3 {[%clk 0:00:03]} 67. Rg3 {[%clk 0:00:21]}  Kh7 {[%clk 0:00:02]} 68. Ng4 {[%clk 0:00:20]}  Ra3 {[%clk 0:00:02]} 69. h5 {[%clk 0:00:21]}  Ra5 {[%clk 0:00:02]} 70. Kh4 {[%clk 0:00:21]}  Rb5 {[%clk 0:00:02]} 71. Nf6+ {[%clk 0:00:21]}  Kh8 {[%clk 0:00:03]} 72. Rg8# {[%clk 0:00:21]} 1-0


[Site "https://www.chess.com"]

[Event "Titled Tuesday Blitz February 15 Early 2022"]
[White "Ambartsumova, Karina"]
[Black "Demin, Vladimir"]
[WhiteFideId "4166299"]
[BlackFideId "4167457"]
[WhiteElo "2262"]
[BlackElo "2478"]
[Result "0-1"]
[Round "06"]
[TimeControl "180+1"]
[Date "2022.02.15"]
[WhiteClock "0:00:04"]
[BlackClock "0:00:15"]

1. d4 {[%clk 0:03:00]}  Nf6 {[%clk 0:02:59]} 2. Nf3 {[%clk 0:03:00]}  d5 {[%clk 0:02:59]} 3. c4 {[%clk 0:02:59]}  c6 {[%clk 0:02:59]} 4. g3 {[%clk 0:02:59]}  e6 {[%clk 0:02:58]} 5. Bg2 {[%clk 0:02:59]}  Bb4+ {[%clk 0:02:58]} 6. Nc3 {[%clk 0:02:52]}  O-O {[%clk 0:02:56]} 7. O-O {[%clk 0:02:51]}  Nbd7 {[%clk 0:02:52]} 8. Qd3 {[%clk 0:02:41]}  b6 {[%clk 0:02:49]} 9. a3 {[%clk 0:02:37]}  Bxc3 {[%clk 0:02:48]} 10. Qxc3 {[%clk 0:02:38]}  Ba6 {[%clk 0:02:32]} 11. b3 {[%clk 0:02:25]}  Rc8 {[%clk 0:02:31]} 12. Bf4 {[%clk 0:01:59]}  c5 {[%clk 0:02:26]} 13. dxc5 {[%clk 0:01:56]}  dxc4 {[%clk 0:02:05]} 14. bxc4 {[%clk 0:01:18]}  Rxc5 {[%clk 0:01:54]} 15. Bd6 {[%clk 0:01:18]}  Rxc4 {[%clk 0:01:54]} 16. Qb2 {[%clk 0:01:17]}  Re8 {[%clk 0:01:51]} 17. Rfd1 {[%clk 0:01:17]}  Qc8 {[%clk 0:01:41]} 18. Rac1 {[%clk 0:01:12]}  Ne4 {[%clk 0:01:27]} 19. Rxc4 {[%clk 0:01:06]}  Qxc4 {[%clk 0:01:23]} 20. Rd4 {[%clk 0:00:43]}  Qc3 {[%clk 0:00:55]} 21. Qb1 {[%clk 0:00:38]}  Nxd6 {[%clk 0:00:53]} 22. Rxd6 {[%clk 0:00:39]}  Nf6 {[%clk 0:00:53]} 23. e3 {[%clk 0:00:35]}  Rc8 {[%clk 0:00:51]} 24. h3 {[%clk 0:00:31]}  Qc1+ {[%clk 0:00:41]} 25. Qxc1 {[%clk 0:00:31]}  Rxc1+ {[%clk 0:00:42]} 26. Kh2 {[%clk 0:00:32]}  Rc8 {[%clk 0:00:42]} 27. Nd4 {[%clk 0:00:29]}  Kf8 {[%clk 0:00:38]} 28. Nc6 {[%clk 0:00:27]}  Ne8 {[%clk 0:00:21]} 29. Rd4 {[%clk 0:00:19]}  Rc7 {[%clk 0:00:21]} 30. Rd8 {[%clk 0:00:17]}  Bb5 {[%clk 0:00:18]} 31. Nd4 {[%clk 0:00:17]}  Ba4 {[%clk 0:00:17]} 32. Ra8 {[%clk 0:00:16]}  Ke7 {[%clk 0:00:17]} 33. h4 {[%clk 0:00:16]}  Nd6 {[%clk 0:00:17]} 34. g4 {[%clk 0:00:13]}  e5 {[%clk 0:00:17]} 35. Nf3 {[%clk 0:00:11]}  f6 {[%clk 0:00:17]} 36. Kg3 {[%clk 0:00:09]}  Bc6 {[%clk 0:00:17]} 37. Nd2 {[%clk 0:00:08]}  Bxa8 {[%clk 0:00:17]} 38. Bxa8 {[%clk 0:00:06]}  Rc2 {[%clk 0:00:16]} 39. Nb3 {[%clk 0:00:04]}  Rc3 {[%clk 0:00:16]} 40. Nd2 {[%clk 0:00:03]}  Rxa3 {[%clk 0:00:16]} 41. Bd5 {[%clk 0:00:04]}  Rd3 {[%clk 0:00:15]} 0-1


[Site "https://www.chess.com"]

[Event "Titled Tuesday Blitz February 15 Early 2022"]
[White "Ardila, Oscar Humberto"]
[Black "Kornyukov, Alexey"]
[WhiteFideId "4404742"]
[BlackFideId "4150457"]
[WhiteElo "1898"]
[BlackElo "2303"]
[Result "1-0"]
[Round "06"]
[TimeControl "180+1"]
[Date "2022.02.15"]
[WhiteClock "0:00:16"]
[BlackClock "0:00:29"]

1. d4 {[%clk 0:03:00]}  d5 {[%clk 0:02:56]} 2. c4 {[%clk 0:03:00]}  e6 {[%clk 0:02:55]} 3. cxd5 {[%clk 0:03:00]}  exd5 {[%clk 0:02:55]} 4. Nc3 {[%clk 0:03:01]}  Be7 {[%clk 0:02:54]} 5. Nf3 {[%clk 0:03:01]}  Nf6 {[%clk 0:02:54]} 6. Bg5 {[%clk 0:03:01]}  O-O {[%clk 0:02:54]} 7. e3 {[%clk 0:03:01]}  Bg4 {[%clk 0:02:54]} 8. Be2 {[%clk 0:03:00]}  c5 {[%clk 0:02:53]} 9. dxc5 {[%clk 0:02:57]}  Nc6 {[%clk 0:02:52]} 10. O-O {[%clk 0:02:48]}  Be6 {[%clk 0:02:47]} 11. Nd4 {[%clk 0:02:40]}  Bxc5 {[%clk 0:02:42]} 12. Nxe6 {[%clk 0:02:39]}  fxe6 {[%clk 0:02:41]} 13. Rc1 {[%clk 0:02:33]}  Bd6 {[%clk 0:02:40]} 14. Nb5 {[%clk 0:02:32]}  h6 {[%clk 0:02:33]} 15. Nxd6 {[%clk 0:02:25]}  Qxd6 {[%clk 0:02:32]} 16. Bf4 {[%clk 0:02:20]}  e5 {[%clk 0:02:32]} 17. Bg3 {[%clk 0:02:20]}  Ne4 {[%clk 0:02:30]} 18. Bf3 {[%clk 0:02:16]}  Nxg3 {[%clk 0:02:29]} 19. Bxd5+ {[%clk 0:02:15]}  Kh8 {[%clk 0:02:29]} 20. hxg3 {[%clk 0:02:14]}  Qb4 {[%clk 0:02:09]} 21. Bxc6 {[%clk 0:02:08]}  bxc6 {[%clk 0:02:09]} 22. b3 {[%clk 0:02:07]}  Qb6 {[%clk 0:02:06]} 23. Qd6 {[%clk 0:02:01]}  Rac8 {[%clk 0:02:03]} 24. Qxe5 {[%clk 0:02:00]}  Qa6 {[%clk 0:02:02]} 25. Rc2 {[%clk 0:01:55]}  Qd3 {[%clk 0:02:00]} 26. Qc3 {[%clk 0:01:54]}  Qd6 {[%clk 0:02:00]} 27. Qc5 {[%clk 0:01:52]}  Qd7 {[%clk 0:01:59]} 28. Rfc1 {[%clk 0:01:45]}  Rf6 {[%clk 0:01:57]} 29. Qd4 {[%clk 0:01:42]}  Qf7 {[%clk 0:01:54]} 30. Qg4 {[%clk 0:01:31]}  Rf8 {[%clk 0:01:51]} 31. Rf1 {[%clk 0:01:15]}  Qd5 {[%clk 0:01:37]} 32. Qe2 {[%clk 0:01:08]}  Qd7 {[%clk 0:01:28]} 33. Rc4 {[%clk 0:01:06]}  Qc7 {[%clk 0:01:08]} 34. Rf4 {[%clk 0:01:03]}  Rxf4 {[%clk 0:01:04]} 35. gxf4 {[%clk 0:01:03]}  Qb6 {[%clk 0:01:01]} 36. Rc1 {[%clk 0:01:01]}  Rf6 {[%clk 0:01:00]} 37. Qc4 {[%clk 0:00:59]}  Qb7 {[%clk 0:00:54]} 38. Qc5 {[%clk 0:00:58]}  Qd7 {[%clk 0:00:53]} 39. Qc2 {[%clk 0:00:52]}  Rd6 {[%clk 0:00:49]} 40. Qc5 {[%clk 0:00:43]}  Rg6 {[%clk 0:00:46]} 41. Qf8+ {[%clk 0:00:40]}  Kh7 {[%clk 0:00:45]} 42. f5 {[%clk 0:00:38]}  Rf6 {[%clk 0:00:44]} 43. Qc5 {[%clk 0:00:34]}  Qd2 {[%clk 0:00:42]} 44. Qc2 {[%clk 0:00:31]}  Qd5 {[%clk 0:00:41]} 45. e4 {[%clk 0:00:31]}  Qe5 {[%clk 0:00:41]} 46. Qc4 {[%clk 0:00:21]}  Qe7 {[%clk 0:00:36]} 47. Rf1 {[%clk 0:00:19]}  Rd6 {[%clk 0:00:35]} 48. Qc2 {[%clk 0:00:18]}  Qd7 {[%clk 0:00:34]} 49. e5 {[%clk 0:00:17]}  Rd2 {[%clk 0:00:34]} 50. Qe4 {[%clk 0:00:17]}  Rd4 {[%clk 0:00:32]} 51. Qb1 {[%clk 0:00:17]}  Kh8 {[%clk 0:00:31]} 52. f6 {[%clk 0:00:16]}  gxf6 {[%clk 0:00:30]} 53. exf6 {[%clk 0:00:16]}  Rd6 {[%clk 0:00:29]} 54. Qg6 {[%clk 0:00:14]}  Qh7 {[%clk 0:00:27]} 55. Qe8+ {[%clk 0:00:12]}  Qg8 {[%clk 0:00:27]} 56. f7 {[%clk 0:00:12]}  Rg6 {[%clk 0:00:23]} 57. fxg8=Q+ {[%clk 0:00:11]}  Rxg8 {[%clk 0:00:23]} 58. Qxg8+ {[%clk 0:00:12]}  Kxg8 {[%clk 0:00:23]} 59. Rd1 {[%clk 0:00:12]}  Kf7 {[%clk 0:00:23]} 60. Rd7+ {[%clk 0:00:12]}  Kf6 {[%clk 0:00:24]} 61. Rxa7 {[%clk 0:00:13]}  Kf5 {[%clk 0:00:24]} 62. Rc7 {[%clk 0:00:14]}  Ke4 {[%clk 0:00:25]} 63. Rxc6 {[%clk 0:00:14]}  Kd3 {[%clk 0:00:26]} 64. Rc4 {[%clk 0:00:14]}  Ke2 {[%clk 0:00:27]} 65. a4 {[%clk 0:00:14]}  Kd2 {[%clk 0:00:28]} 66. a5 {[%clk 0:00:15]}  Kd3 {[%clk 0:00:29]} 67. a6 {[%clk 0:00:16]} 1-0


[Site "https://www.chess.com"]

[Event "Titled Tuesday Blitz February 15 Early 2022"]
[White "Arngrimsson, Dagur"]
[Black "Winkels, Marcel"]
[WhiteFideId "2301288"]
[BlackFideId "1003887"]
[WhiteElo "2286"]
[BlackElo "1900"]
[Result "1-0"]
[Round "06"]
[TimeControl "180+1"]
[Date "2022.02.15"]
[WhiteClock "0:00:03"]
[BlackClock "0:00:46"]

1. e4 {[%clk 0:02:59]}  g6 {[%clk 0:02:59]} 2. d4 {[%clk 0:02:57]}  Bg7 {[%clk 0:02:59]} 3. Be3 {[%clk 0:02:56]}  c6 {[%clk 0:02:58]} 4. Qd2 {[%clk 0:02:53]}  d5 {[%clk 0:02:57]} 5. Nc3 {[%clk 0:02:49]}  h5 {[%clk 0:02:50]} 6. O-O-O {[%clk 0:02:46]}  dxe4 {[%clk 0:02:44]} 7. Nxe4 {[%clk 0:02:47]}  Nd7 {[%clk 0:02:43]} 8. Bc4 {[%clk 0:02:42]}  Ngf6 {[%clk 0:02:35]} 9. Bxf7+ {[%clk 0:02:39]}  Kxf7 {[%clk 0:02:28]} 10. Ng5+ {[%clk 0:02:39]}  Kg8 {[%clk 0:02:27]} 11. N1f3 {[%clk 0:02:13]}  Nf8 {[%clk 0:02:10]} 12. Qd3 {[%clk 0:02:05]}  Bf5 {[%clk 0:02:08]} 13. Qb3+ {[%clk 0:02:04]}  Qd5 {[%clk 0:02:01]} 14. c4 {[%clk 0:02:03]}  Qd7 {[%clk 0:01:55]} 15. h3 {[%clk 0:01:42]}  Ne4 {[%clk 0:01:49]} 16. g4 {[%clk 0:01:37]}  hxg4 {[%clk 0:01:38]} 17. hxg4 {[%clk 0:01:32]}  Rxh1 {[%clk 0:01:37]} 18. Rxh1 {[%clk 0:01:28]}  Nxg5 {[%clk 0:01:33]} 19. Nxg5 {[%clk 0:00:40]}  Bxg4 {[%clk 0:01:32]} 20. Rh4 {[%clk 0:00:37]}  Bf5 {[%clk 0:01:24]} 21. Qd1 {[%clk 0:00:19]}  Rd8 {[%clk 0:01:21]} 22. Qh1 {[%clk 0:00:17]}  b5 {[%clk 0:01:09]} 23. cxb5 {[%clk 0:00:02]}  cxb5 {[%clk 0:01:05]} 24. Kd2 {[%clk 0:00:03]}  Rc8 {[%clk 0:01:03]} 25. Ke2 {[%clk 0:00:02]}  Rc2+ {[%clk 0:01:00]} 26. Kd1 {[%clk 0:00:02]}  Ne6 {[%clk 0:00:48]} 27. Rh8+ {[%clk 0:00:01]}  Bxh8 {[%clk 0:00:46]} 28. Qh7+ {[%clk 0:00:02]}  Kf8 {[%clk 0:00:46]} 29. Qf7# {[%clk 0:00:03]} 1-0


[Site "https://www.chess.com"]

[Event "Titled Tuesday Blitz February 15 Early 2022"]
[White "Barp, Alberto"]
[Black "Lauridsen, Jesper Morch"]
[WhiteFideId "872555"]
[BlackFideId "1401890"]
[WhiteElo "2229"]
[BlackElo "2206"]
[Result "1-0"]
[Round "06"]
[TimeControl "180+1"]
[Date "2022.02.15"]
[WhiteClock "0:01:05"]
[BlackClock "0:01:38"]

1. Nc3 {[%clk 0:03:00]}  Nf6 {[%clk 0:02:59]} 2. d4 {[%clk 0:03:01]}  d5 {[%clk 0:02:58]} 3. Bf4 {[%clk 0:03:00]}  c6 {[%clk 0:02:57]} 4. f3 {[%clk 0:02:59]}  Bf5 {[%clk 0:02:56]} 5. g4 {[%clk 0:02:58]}  Bc8 {[%clk 0:02:52]} 6. h4 {[%clk 0:02:58]}  e6 {[%clk 0:02:45]} 7. e3 {[%clk 0:02:46]}  Bb4 {[%clk 0:02:44]} 8. Ne2 {[%clk 0:02:44]}  c5 {[%clk 0:02:43]} 9. a3 {[%clk 0:02:44]}  Ba5 {[%clk 0:02:42]} 10. dxc5 {[%clk 0:02:43]}  Bxc3+ {[%clk 0:02:36]} 11. Nxc3 {[%clk 0:02:42]}  Nc6 {[%clk 0:02:37]} 12. Bd6 {[%clk 0:02:40]}  e5 {[%clk 0:02:29]} 13. g5 {[%clk 0:02:35]}  d4 {[%clk 0:02:22]} 14. exd4 {[%clk 0:02:21]}  exd4 {[%clk 0:02:19]} 15. Qe2+ {[%clk 0:02:05]}  Be6 {[%clk 0:02:16]} 16. Nb5 {[%clk 0:01:40]}  Nd5 {[%clk 0:02:11]} 17. O-O-O {[%clk 0:01:35]}  a6 {[%clk 0:02:05]} 18. Nxd4 {[%clk 0:01:30]}  Nxd4 {[%clk 0:02:02]} 19. Rxd4 {[%clk 0:01:31]}  Kd7 {[%clk 0:02:02]} 20. Qd2 {[%clk 0:01:25]}  Kc6 {[%clk 0:01:58]} 21. f4 {[%clk 0:01:13]}  Re8 {[%clk 0:01:56]} 22. Bg2 {[%clk 0:01:12]}  Qd7 {[%clk 0:01:42]} 23. Rxd5 {[%clk 0:01:10]}  Bxd5 {[%clk 0:01:39]} 24. Bxd5+ {[%clk 0:01:11]}  Kb5 {[%clk 0:01:39]} 25. c4+ {[%clk 0:01:10]}  Ka4 {[%clk 0:01:38]} 26. Qb4# {[%clk 0:01:05]} 1-0


[Site "https://www.chess.com"]

[Event "Titled Tuesday Blitz February 15 Early 2022"]
[White "Batsiashvili, Nino"]
[Black "Ruperez Benito, Antonio"]
[WhiteFideId "13602993"]
[BlackFideId "22245049"]
[WhiteElo "2230"]
[BlackElo "2249"]
[Result "0-1"]
[Round "06"]
[TimeControl "180+1"]
[Date "2022.02.15"]
[WhiteClock "0:00:01"]
[BlackClock "0:00:25"]

1. d4 {[%clk 0:03:00]}  Nf6 {[%clk 0:02:54]} 2. c4 {[%clk 0:03:01]}  e6 {[%clk 0:02:55]} 3. Nc3 {[%clk 0:03:01]}  Bb4 {[%clk 0:02:53]} 4. Nf3 {[%clk 0:03:01]}  O-O {[%clk 0:02:49]} 5. Bg5 {[%clk 0:03:00]}  d5 {[%clk 0:02:49]} 6. e3 {[%clk 0:02:56]}  b6 {[%clk 0:02:46]} 7. cxd5 {[%clk 0:02:53]}  exd5 {[%clk 0:02:42]} 8. Bd3 {[%clk 0:02:53]}  c5 {[%clk 0:02:41]} 9. O-O {[%clk 0:02:52]}  h6 {[%clk 0:02:41]} 10. Bxf6 {[%clk 0:02:48]}  gxf6 {[%clk 0:02:03]} 11. dxc5 {[%clk 0:02:06]}  Bxc3 {[%clk 0:01:56]} 12. bxc3 {[%clk 0:02:07]}  bxc5 {[%clk 0:01:56]} 13. c4 {[%clk 0:01:55]}  f5 {[%clk 0:01:49]} 14. Ne5 {[%clk 0:01:38]}  Qf6 {[%clk 0:01:42]} 15. f4 {[%clk 0:01:36]}  Nc6 {[%clk 0:01:42]} 16. Qh5 {[%clk 0:00:49]}  Nxe5 {[%clk 0:01:33]} 17. fxe5 {[%clk 0:00:50]}  Qxe5 {[%clk 0:01:34]} 18. Qxh6 {[%clk 0:00:49]}  dxc4 {[%clk 0:01:32]} 19. Bxf5 {[%clk 0:00:36]}  Qg7 {[%clk 0:01:26]} 20. Qxg7+ {[%clk 0:00:22]}  Kxg7 {[%clk 0:01:27]} 21. Rac1 {[%clk 0:00:23]}  Ba6 {[%clk 0:01:23]} 22. g4 {[%clk 0:00:20]}  Rfe8 {[%clk 0:01:22]} 23. Kf2 {[%clk 0:00:20]}  Rab8 {[%clk 0:01:20]} 24. Rfe1 {[%clk 0:00:18]}  Rb2+ {[%clk 0:01:18]} 25. Re2 {[%clk 0:00:18]}  Rh8 {[%clk 0:01:04]} 26. Rh1 {[%clk 0:00:06]}  c3 {[%clk 0:00:57]} 27. Rxb2 {[%clk 0:00:05]}  cxb2 {[%clk 0:00:57]} 28. h4 {[%clk 0:00:05]}  Rd8 {[%clk 0:00:49]} 29. h5 {[%clk 0:00:03]}  Rd2+ {[%clk 0:00:40]} 30. Kg3 {[%clk 0:00:03]}  c4 {[%clk 0:00:33]} 31. h6+ {[%clk 0:00:03]}  Kh8 {[%clk 0:00:32]} 32. Rh5 {[%clk 0:00:02]}  c3 {[%clk 0:00:28]} 33. Rg5 {[%clk 0:00:01]}  Bd3 {[%clk 0:00:25]} 0-1


[Site "https://www.chess.com"]

[Event "Titled Tuesday Blitz February 15 Early 2022"]
[White "Blokhin, Sofia"]
[Black "Bon, Michael"]
[WhiteFideId "4508190"]
[BlackFideId "620696"]
[WhiteElo "1762"]
[BlackElo "2442"]
[Result "0-1"]
[Round "06"]
[TimeControl "180+1"]
[Date "2022.02.15"]
[WhiteClock "0:00:13"]
[BlackClock "0:00:08"]

1. e4 {[%clk 0:03:00]}  e6 {[%clk 0:02:58]} 2. d4 {[%clk 0:02:59]}  d5 {[%clk 0:02:59]} 3. e5 {[%clk 0:02:59]}  c5 {[%clk 0:02:59]} 4. c3 {[%clk 0:03:00]}  Nc6 {[%clk 0:03:00]} 5. Nf3 {[%clk 0:03:00]}  Qb6 {[%clk 0:03:00]} 6. a3 {[%clk 0:03:00]}  Nge7 {[%clk 0:02:59]} 7. Bd3 {[%clk 0:02:59]}  Bd7 {[%clk 0:02:31]} 8. Bc2 {[%clk 0:02:58]}  Rc8 {[%clk 0:02:27]} 9. O-O {[%clk 0:02:57]}  Ng6 {[%clk 0:02:18]} 10. h4 {[%clk 0:02:53]}  Be7 {[%clk 0:02:13]} 11. g3 {[%clk 0:02:53]}  cxd4 {[%clk 0:01:57]} 12. cxd4 {[%clk 0:02:51]}  Na5 {[%clk 0:01:54]} 13. Nc3 {[%clk 0:02:48]}  Nc4 {[%clk 0:01:47]} 14. h5 {[%clk 0:02:36]}  Nf8 {[%clk 0:01:46]} 15. Rb1 {[%clk 0:02:34]}  Qc7 {[%clk 0:01:31]} 16. Bb3 {[%clk 0:01:46]}  Nxa3 {[%clk 0:01:29]} 17. bxa3 {[%clk 0:01:45]}  Qxc3 {[%clk 0:01:28]} 18. Bb2 {[%clk 0:01:44]}  Qc7 {[%clk 0:01:17]} 19. Rc1 {[%clk 0:01:43]}  Qb8 {[%clk 0:01:16]} 20. Qd3 {[%clk 0:01:32]}  Bc6 {[%clk 0:01:10]} 21. Nh2 {[%clk 0:01:23]}  Nd7 {[%clk 0:01:09]} 22. f4 {[%clk 0:01:22]}  g6 {[%clk 0:01:07]} 23. Qf3 {[%clk 0:01:14]}  Bb5 {[%clk 0:01:01]} 24. Rfe1 {[%clk 0:01:14]}  Rxc1 {[%clk 0:00:59]} 25. Rxc1 {[%clk 0:01:12]}  Nb6 {[%clk 0:00:59]} 26. g4 {[%clk 0:01:06]}  Nc4 {[%clk 0:00:50]} 27. Bxc4 {[%clk 0:01:04]}  Bxc4 {[%clk 0:00:51]} 28. f5 {[%clk 0:01:02]}  gxf5 {[%clk 0:00:32]} 29. gxf5 {[%clk 0:01:01]}  Rg8+ {[%clk 0:00:33]} 30. Kh1 {[%clk 0:01:01]}  Rg5 {[%clk 0:00:22]} 31. f6 {[%clk 0:00:54]}  Bf8 {[%clk 0:00:22]} 32. Qd1 {[%clk 0:00:43]}  b5 {[%clk 0:00:19]} 33. Rc3 {[%clk 0:00:37]}  Qb6 {[%clk 0:00:18]} 34. Rh3 {[%clk 0:00:36]}  h6 {[%clk 0:00:16]} 35. Nf3 {[%clk 0:00:35]}  Rf5 {[%clk 0:00:14]} 36. Nd2 {[%clk 0:00:30]}  Qa5 {[%clk 0:00:13]} 37. Nxc4 {[%clk 0:00:23]}  bxc4 {[%clk 0:00:14]} 38. Qc1 {[%clk 0:00:20]}  Qb5 {[%clk 0:00:11]} 39. Qc3 {[%clk 0:00:18]}  a6 {[%clk 0:00:10]} 40. Kh2 {[%clk 0:00:17]}  Rf2+ {[%clk 0:00:10]} 41. Kg1 {[%clk 0:00:13]}  Rxb2 {[%clk 0:00:08]} 0-1


[Site "https://www.chess.com"]

[Event "Titled Tuesday Blitz February 15 Early 2022"]
[White "Bluebaum, Matthias"]
[Black "Noroozi, Omid"]
[WhiteFideId "24651516"]
[BlackFideId "12501190"]
[WhiteElo "2550"]
[BlackElo "2236"]
[Result "0-1"]
[Round "06"]
[TimeControl "180+1"]
[Date "2022.02.15"]
[WhiteClock "0:00:09"]
[BlackClock "0:00:11"]

1. d4 {[%clk 0:02:59]}  Nf6 {[%clk 0:02:56]} 2. c4 {[%clk 0:02:59]}  e6 {[%clk 0:02:56]} 3. Nc3 {[%clk 0:02:59]}  Bb4 {[%clk 0:02:57]} 4. e3 {[%clk 0:02:59]}  O-O {[%clk 0:02:56]} 5. Bd2 {[%clk 0:02:59]}  b6 {[%clk 0:02:55]} 6. Bd3 {[%clk 0:02:56]}  Bb7 {[%clk 0:02:55]} 7. Nf3 {[%clk 0:02:56]}  d6 {[%clk 0:02:54]} 8. b3 {[%clk 0:02:54]}  Nbd7 {[%clk 0:02:46]} 9. a3 {[%clk 0:02:53]}  Bxc3 {[%clk 0:02:46]} 10. Bxc3 {[%clk 0:02:54]}  Ne4 {[%clk 0:02:47]} 11. Bb2 {[%clk 0:02:51]}  f5 {[%clk 0:02:48]} 12. O-O {[%clk 0:02:50]}  Qe8 {[%clk 0:02:49]} 13. Nd2 {[%clk 0:02:48]}  Qh5 {[%clk 0:02:44]} 14. f3 {[%clk 0:02:44]}  Nxd2 {[%clk 0:02:16]} 15. Qxd2 {[%clk 0:02:45]}  Rf6 {[%clk 0:02:11]} 16. e4 {[%clk 0:02:12]}  fxe4 {[%clk 0:01:59]} 17. fxe4 {[%clk 0:02:10]}  Raf8 {[%clk 0:01:55]} 18. d5 {[%clk 0:02:04]}  e5 {[%clk 0:01:54]} 19. b4 {[%clk 0:02:02]}  Bc8 {[%clk 0:01:43]} 20. h3 {[%clk 0:01:54]}  Rg6 {[%clk 0:01:32]} 21. Kh1 {[%clk 0:01:03]}  Nf6 {[%clk 0:01:27]} 22. Qe3 {[%clk 0:01:03]}  Qh4 {[%clk 0:01:27]} 23. Rf3 {[%clk 0:01:00]}  Nh5 {[%clk 0:01:27]} 24. Rxf8+ {[%clk 0:00:56]}  Kxf8 {[%clk 0:01:27]} 25. Bc3 {[%clk 0:00:30]}  Rg3 {[%clk 0:01:24]} 26. Qf2+ {[%clk 0:00:26]}  Nf4 {[%clk 0:01:25]} 27. Be1 {[%clk 0:00:25]}  Rxh3+ {[%clk 0:01:23]} 28. gxh3 {[%clk 0:00:23]}  Qxh3+ {[%clk 0:01:24]} 29. Kg1 {[%clk 0:00:22]}  Qxd3 {[%clk 0:01:24]} 30. Qh4 {[%clk 0:00:19]}  Qxe4 {[%clk 0:01:18]} 31. Ra2 {[%clk 0:00:19]}  h5 {[%clk 0:00:58]} 32. Kh2 {[%clk 0:00:19]}  Qxc4 {[%clk 0:00:47]} 33. Rd2 {[%clk 0:00:16]}  Kf7 {[%clk 0:00:44]} 34. Bg3 {[%clk 0:00:15]}  Bg4 {[%clk 0:00:42]} 35. Rf2 {[%clk 0:00:15]}  Kg6 {[%clk 0:00:43]} 36. Qe7 {[%clk 0:00:13]}  Qxd5 {[%clk 0:00:38]} 37. Qxc7 {[%clk 0:00:14]}  Kh7 {[%clk 0:00:25]} 38. Qc2+ {[%clk 0:00:11]}  Kh6 {[%clk 0:00:21]} 39. Qc1 {[%clk 0:00:06]}  g5 {[%clk 0:00:21]} 40. Qc7 {[%clk 0:00:07]}  h4 {[%clk 0:00:19]} 41. Bxf4 {[%clk 0:00:07]}  exf4 {[%clk 0:00:19]} 42. Qd8 {[%clk 0:00:08]}  Bf5 {[%clk 0:00:16]} 43. Qf8+ {[%clk 0:00:08]}  Kg6 {[%clk 0:00:16]} 44. Qe8+ {[%clk 0:00:08]}  Qf7 {[%clk 0:00:16]} 45. Qd8 {[%clk 0:00:09]}  Qf6 {[%clk 0:00:16]} 46. Qg8+ {[%clk 0:00:09]}  Kh6 {[%clk 0:00:15]} 47. Re2 {[%clk 0:00:09]}  f3 {[%clk 0:00:15]} 48. Re8 {[%clk 0:00:08]}  f2 {[%clk 0:00:14]} 49. Rf8 {[%clk 0:00:07]}  Qe5+ {[%clk 0:00:10]} 50. Kg2 {[%clk 0:00:08]}  Qg3+ {[%clk 0:00:10]} 51. Kf1 {[%clk 0:00:09]}  Bd3# {[%clk 0:00:11]} 0-1


[Site "https://www.chess.com"]